{"text_format":"1","workbook":"xlsx","n_sheets":5,"sheets":["Mouvement","ArchivMouv","Stock","Source","Catalogue"],"not_rendered":{"charts":0,"images":3,"macros":1,"external_links":0,"defined_names":1,"comments":0,"pivot_tables":0},"unopened":[],"bounds":{"document_bytes":16777216,"sheet_cells":100000,"rows_first":2000,"rows_last":500,"rows_between":2000,"halvings":0,"cell_chars":16384,"cell_head_chars":4096},"cells_cut":0,"cells_raw":0,"read":"whole","date_system":"1900"}

{"sheet":"Mouvement","index":0,"n_rows":64,"n_cols":8,"rows_kept":64,"cut":false,"hidden":false,"merged":[[5,4,5,7],[2,6,2,7],[0,1,1,7],[4,5,4,6]]}
[null,"Mouvement Outillage"]
[]
[null,"Matériel","N° ligne dansTableau6"," dans Catalogue",{"$f":"INDIRECT(VLOOKUP($B$4,Catalogue!$A$4:$C$57,2,0))","v":0}]
[null,"Aiguille",{"$f":"MATCH(B4,C19:C66,0)","v":1},{"$f":"MATCH(B4,Catalogue!A:A,0)","v":5}]
[null,null,null,"Source",null,"Désignation"]
[null,null,null,{"$f":"MATCH(B4,Source!A:A,0)","v":2},{"$f":"IFERROR(VLOOKUP(B4,Stock!B4:F757,4,0),\"\")","v":"Aiguille de tirage 30 mètres"}]
[null,"Sortie le","2020-10-20"]
[]
[null,"Retour le","2020-10-22"]
[]
[null,"Obs","RAS"]
[]
[null,"Technicien","Henry"]
[]
[null,"Chantier","ALFI"]
[]
[]
[null,"N°","Matériel","Technicien","Chantier","Sortie","Retour","Obs"]
[null,1,"Aiguille","Henry","ALFI","2020-10-20","2020-10-22","RAS"]
[null,2,"Anémomètre"]
[null,3,"Aspirateur"]
[null,4,"Aspirateur Hilti"]
[null,5,"Blocs de gravure"]
[null,6,"Chargeur"]
[null,7,"Chargeur Multiple"]
[null,8,"Chargeur rapide"]
[null,9,"Chevalet "]
[null,10,"Cordeau Traçage"]
[null,11,"Coude KEYSER à 90°"]
[null,12,"Coude Simple"]
[null,13,"Derouleur de câble"]
[null,14,"Distributeur Aerosol "]
[null,15,"Echelle Opti+"]
[null,16,"Enrouleur"]
[null,17,"Escabeau "]
[null,18,"Escabeau 3 Mrches"]
[null,19,"Escabeau 7Mrches"]
[null,20,"Escabeau Hailo"]
[null,21,"Escabeau PRO54"]
[null,22,"Etabli pliable"]
[null,23,"Etiqueteuse"]
[null,24,"Four Micro ondes"]
[null,25,"Harnais Antichute"]
[null,26,"Harnais Sécurité"]
[null,27,"Inspecteur Mobile RIA"]
[null,28,"Localisateur"]
[null,29,"Machine à café"]
[null,30,"Multimètre"]
[null,31,"Perche"]
[null,32,"Pince à plomber"]
[null,33,"Pistolet"]
[null,34,"Porte cartouche 330"]
[null,35,"Porte cartouche 500"]
[null,36,"Programmateur"]
[null,37,"Rainureuse HILTI"]
[null,38,"Rallonge électrique"]
[null,39,"Rallonge perche"]
[null,40,"Robinet Double1"]
[null,41,"Robinet Double2"]
[null,42,"Robinet Double3"]
[null,43,"Ruban laminé"]
[null,44,"Triangles"]
[null,45]
[null,46]

{"sheet":"ArchivMouv","index":1,"n_rows":1,"n_cols":7,"rows_kept":1,"cut":false,"hidden":false,"merged":[]}
["N°","Matériel","Technicien","Chantier","Sortie","Retour","X"]

{"sheet":"Stock","index":2,"n_rows":48,"n_cols":6,"rows_kept":48,"cut":false,"hidden":false,"merged":[]}
[]
[]
[null,"Matériel","Réf","Fournisseur","Désignations","Colonne1"]
[null,"Affiches"]
[null,"Aiguille","KB330",null,"Aiguille de tirage 30 mètres"]
[null,"Anémomètre","GANH0001","CORDIA","Anémomètre à hélice de 100 mm"]
[null,"Aspirateur","MULTI II 22 ","NILFISK","Aspirateur bidon Nilfisk "]
[null,"Aspirateur Hilti","VC 20L-X","HILTI","Aspirateur universel compact "]
[null,"Blocs de gravure"," IBLG0001",null,"BlocS de gravure pour pince TED"]
[null,"Chargeur",2109004,"HILTI","Chargeur Hilti"]
[null,"Chargeur Multiple",2108812,"HILTI","Multi chargeur HILTI"]
[null,"Chargeur rapide","DC18RC","MAKITA","Chargeur rapide Makita DC18RC"]
[null,"Chevalet ","ICHM0001",null,"Chevalet de maintenance"]
[null,"Cordeau Traçage","BIZ700037",null,"Kit cordeau à tracer"]
[null,"Coude KEYSER à 90°","IRPI0202","CORDIA","Kit raccords coudés pour bouches incendie"]
[null,"Coude Simple",null,"CORDIA","Coude simple pour bouche incendie"]
[null,"Derouleur de câble","E3004160","SONEPAR","Derouleur de touret PRIMO 160"]
[null,"Distributeur Aerosol ","SOLO 330",null,"Distributeur Aerosol de Fumee"]
[null,"Echelle Opti+","EN 131 4","CENTAURE","Echelle Articulée"]
[null,"Enrouleur",1206941,"SONEPAR"," - ENROULEUR STANDARD PRO"]
[null,"Escabeau "]
[null,"Escabeau 3 Mrches","BIZ 730943",null,"Marche pied 3 marches"]
[null,"Escabeau 7Mrches","8837-101","HAILO","7 marches"]
[null,"Escabeau Hailo",null,"HAILO"]
[null,"Escabeau PRO54",null,"CENTAURE","7 marches"]
[null,"Etabli pliable","FMSTI 75672","TRENOIS SETIN","Etabli polyvalent pliable 85x60x80"]
[null,"Etiqueteuse",229002,"SONEPAR","PTE110 ETIQUETEUSE INDUSTRIE"]
[null,"Four Micro ondes","EL MO 008","MOBIKA","Four Micro Ondes"]
[null,"Harnais Antichute",409,"SASSI","Harnais Antichute"]
[null,"Harnais Sécurité","HT22","TRACTEL","Harnais de Sécurité"]
[null,"Inspecteur Mobile RIA","IIMR0001","CORDIA","Inspecteur Mobile RIA"]
[null,"Localisateur","SEFRAM 96","SEFRAM","localisateur de câbles "]
[null,"Machine à café","INISSIA D40","NESPRESSO","Machine à café"]
[null,"Multimètre","SEFRAM 7308","SEFRAM","Multimetre Numérique"]
[null,"Perche",null,null,"Perche incendie"]
[null,"Pince à plomber","IPIP0001 ",null,"Pince à plomber TED"]
[null,"Pistolet",2005640,"HILTI","Pistolet à injection "]
[null,"Porte cartouche 330","HIT-CB330","HILTI","Appareil injection chevillage chimique"]
[null,"Porte cartouche 500","HIT-CB500","HILTI","Appareil injection chevillage chimique"]
[null,"Programmateur","TELU-B","NORALSY","NORALSY TELU-B PROGRAMMATEUR VIGIK"]
[null,"Rainureuse HILTI","DC-se20","HILTI","Rainureuse diamant pour l'installation de câbles"]
[null,"Rallonge électrique",null,null,"Enrouleur rallonge électrique 25m"]
[null,"Rallonge perche","SOLO 101",null,"Rallonge perche incendie. 1,13M"]
[null,"Robinet Double1",null,"CORDIA","Robinet de prise double symétrique"]
[null,"Robinet Double2",null,"CORDIA","Robinet de prise double symétrique"]
[null,"Robinet Double3",null,"CORDIA","Robinet de prise double symétrique"]
[null,"Ruban laminé",229114,"SONEPAR","AGI Robur - 229114 - TZe231 RUBAN 12MM NOIR-BLANC"]
[null,"Triangles","KL D7",null,"Triangles de signalisation"]

{"sheet":"Source","index":3,"n_rows":47,"n_cols":1,"rows_kept":47,"cut":false,"hidden":false,"merged":[]}
["Références"]
["Aiguille"]
["Anémomètre"]
["Aspirateur"]
["Aspirateur Hilti"]
["Blocs de gravure"]
["Chargeur"]
["Chargeur Multiple"]
["Chargeur rapide"]
["Chevalet "]
["Cordeau Traçage"]
["Coude KEYSER à 90°"]
["Coude Simple"]
["Défonceuse"]
["Derouleur de câble"]
["Distributeur Aerosol "]
["Echelle Opti+"]
["Enrouleur"]
["Escabeau "]
["Escabeau 3 Marches"]
["Escabeau 7Marches"]
["Escabeau Hailo"]
["Escabeau PRO54"]
["Etabli pliable"]
["Etiqueteuse"]
["Four Micro ondes"]
["Gilets"]
["Harnais Antichute"]
["Harnais Sécurité"]
["Inspecteur Mobile RIA"]
["Localisateur"]
["Machine à café"]
["Multimètre"]
["Perche"]
["Pince à plomber"]
["Pistolet"]
["Porte cartouche 330"]
["Porte cartouche 500"]
["Programmateur"]
["Rainureuse HILTI"]
["Rallonge électrique"]
["Rallonge perche"]
["Robinet Double1"]
["Robinet Double2"]
["Robinet Double3"]
["Ruban laminé"]
["Triangles"]

{"sheet":"Catalogue","index":4,"n_rows":57,"n_cols":4,"rows_kept":57,"cut":false,"hidden":false,"merged":[[0,0,1,2]]}
["CATALOGUE"]
[]
["Colonne1","Colonne2","Colonne3","Colonne4"]
["Cordeau Traçage",{"$f":"\"Catalogue!\"&ADDRESS(ROW(B4),COLUMN(C4))","v":"Catalogue!$C$4"}]
["Aiguille","Catalogue!$C$5"]
["Chargeur Multiple","Catalogue!$C$6"]
["Chargeur","Catalogue!$C$7"]
["Pistolet","Catalogue!$C$8"]
["Chevalet ","Catalogue!$C$9"]
["Pince à plomber","Catalogue!$C$10"]
["Blocs de gravure","Catalogue!$C$11"]
["Perche","Catalogue!$C$12"]
["Rallonge perche","Catalogue!$C$13"]
["Distributeur Aerosol ","Catalogue!$C$14"]
["Rallonge électrique","Catalogue!$C$15"]
["Echelle Opti+","Catalogue!$C$16"]
["Escabeau 7Marches","Catalogue!$C$17"]
["Escabeau PRO54","Catalogue!$C$18"]
["Escabeau ","Catalogue!$C$19"]
["Escabeau Hailo","Catalogue!$C$20"]
["Escabeau 3 Marches","Catalogue!$C$21"]
["Affiches","Catalogue!$C$22"]
["Triangles","Catalogue!$C$23"]
["Four Micro ondes","Catalogue!$C$24"]
["Machine à café","Catalogue!$C$25"]
["Aspirateur","Catalogue!$C$26"]
["Aspirateur Hilti","Catalogue!$C$27"]
["Rainureuse HILTI","Catalogue!$C$28"]
["Harnais Antichute","Catalogue!$C$29"]
["Harnais Sécurité","Catalogue!$C$30"]
["Anémomètre","Catalogue!$C$31"]
["Multimètre","Catalogue!$C$32"]
["Programmateur","Catalogue!$C$33"]
["Localisateur","Catalogue!$C$34",null,"et testeur câbles informatiques"]
["Porte cartouche 330","Catalogue!$C$35"]
["Porte cartouche 500",{"$f":"\"Catalogue!\"&ADDRESS(ROW(B36),COLUMN(C36))","v":"Catalogue!$C$36"}]
["Chargeur rapide","Catalogue!$C$37",null,"+ batterie 18v BL1830B 3Ah Li-ion LXT"]
["Ruban laminé","Catalogue!$C$38",null,"texte noir/fond blanc 12 mm x 8 m"]
["Etiqueteuse","Catalogue!$C$39",null,"Pour ruban Laminé"]
["Inspecteur Mobile RIA","Catalogue!$C$40",null,"Capacité :  réservoir 50 litres"]
["Coude KEYSER à 90°","Catalogue!$C$41",null,"1 coude 90° raccord DN100 – AR DN 100"]
["Coude Simple","Catalogue!$C$42"]
["Robinet Double1","Catalogue!$C$43"]
["Robinet Double2","Catalogue!$C$44"]
["Robinet Double3","Catalogue!$C$45"]
["Etabli pliable","Catalogue!$C$46"]
["Enrouleur","Catalogue!$C$47"]
["Derouleur de câble","Catalogue!$C$48"]
[null,"Catalogue!$C$49"]
[null,"Catalogue!$C$50"]
[null,"Catalogue!$C$51"]
[null,"Catalogue!$C$52"]
[null,"Catalogue!$C$53"]
[null,"Catalogue!$C$54"]
[null,"Catalogue!$C$55"]
[null,"Catalogue!$C$56"]
[null,"Catalogue!$C$57"]